bitfinex/quotes_ETHUSD_20240811
["timestamp","ask_amount","ask_price","bid_price","bid_amount"]
[1723374693153,0.02491287,2672.3,2671.2,0.64717611]
[1723374693355,2.3467,2672.2,2671.7,0.07610922]
[1723374693513,0.02491287,2672.1,2671.2,0.64717611]
[1723374693852,0.02491287,2672.1,2671.3,0.47304991]
[1723374694057,3.02491287,2672.1,2671.3,0.0762333]
[1723374694417,3.02491287,2672.1,2671.1,3.32099]
[1723374694644,3.02491287,2672.1,2671.4,0.07620228]
[1723374694840,2.3467,2671.9,2671.2,0.07486504]
[1723374695043,2.3467,2671.9,2670.8,2.3509]
[1723374695044,0.02491287,2671.8,2670.8,2.3509]
[1723374695231,0.53716129,2671.7,2670.5,2.3509]
[1723374695432,3.0,2671.7,2670.9,0.07666994]
[1723374695653,3.0,2671.7,2670.5,2.3509]
[1723374695654,0.02491287,2671.6,2670.5,2.3509]
[1723374696013,0.02491287,2671.6,2670.6,0.07487111]
[1723374696217,3.0,2671.7,2670.7,0.24257711]
[1723374696443,3.0,2671.7,2670.8,0.15157209]
[1723374696822,3.0,2671.7,2670.8,0.15053291]
[1723374697031,3.02595205,2671.7,2670.8,0.07670098]
[1723374697756,3.02595205,2671.7,2670.8,0.15157225]
[1723374697757,3.0,2671.7,2670.8,0.15157225]
[1723374697966,4.29321725,2671.7,2670.8,0.15157225]
[1723374698261,4.29321725,2671.7,2670.8,0.07670098]
[1723374698427,2.3467,2671.5,2670.8,0.07670098]
[1723374698624,0.02595205,2671.4,2670.5,2.42577129]
[1723374698871,2.3467,2671.5,2670.9,0.07670672]
[1723374699026,2.3467,2671.5,2670.7,0.07487074]
[1723374699362,3.0,2671.6,2670.8,0.0748704]
[1723374699536,9.6467,2672.4,2670.9,2.3509]
[1723374699857,2.3467,2672.4,2671.2,2.3509]
[1723374700264,0.02595205,2672.3,2671.2,2.3509]
[1723374700434,0.02595205,2672.3,2671.3,0.07716349]
[1723374700637,0.02595205,2672.3,2671.4,0.0748534]
[1723374700868,0.02595205,2672.3,2671.4,0.32514509]
[1723374701165,2.37265205,2672.4,2671.5,0.15178469]
[1723374701364,2.37265205,2672.4,2671.5,0.07693226]
[1723374701866,2.37265205,2672.4,2671.4,0.25029169]
[1723374702362,0.02595205,2672.3,2671.4,0.25029169]
[1723374702741,3.02595205,2672.3,2671.4,0.25029169]
[1723374703962,3.02595205,2672.3,2671.2,2.3509]
[1723374704338,0.55,2672.2,2671.3,0.07689135]
[1723374704661,0.02595205,2672.1,2671.3,0.07689135]
[1723374705074,2.4459,2672.0,2671.3,0.07689135]
[1723374705226,0.02595205,2671.9,2671.3,0.07689135]
[1723374705432,0.24718521,2671.8,2670.8,2.3233]
[1723374705633,0.24718521,2671.8,2670.9,0.15188097]
[1723374705945,0.02595205,2671.9,2670.9,0.15188097]
[1723374706470,9.7459,2672.0,2670.9,0.15188097]
[1723374706471,7.3,2672.0,2671.0,2.3233]
[1723374706763,3.0,2672.1,2671.1,0.2475181]
[1723374706934,0.02595205,2672.2,2671.1,0.32447151]
[1723374707129,0.59686378,2672.2,2671.2,0.33963167]
[1723374707335,3.02595205,2672.2,2671.2,0.33963167]
[1723374707536,3.02595205,2672.2,2671.3,0.07689135]
[1723374707769,3.02595205,2672.2,2671.4,0.0748545]
[1723374708094,0.02595205,2672.2,2671.5,0.0768293]
[1723374708263,0.02595205,2672.2,2671.5,2.47498291]
[1723374708479,5.4459,2672.3,2671.5,2.64762759]
[1723374708852,5.4459,2672.3,2671.6,0.07485363]
[1723374709555,0.02595205,2672.2,2671.5,2.57079829]
[1723374709958,0.02595205,2672.2,2671.6,0.07679828]
[1723374710549,0.35227378,2672.2,2671.6,0.07679828]
[1723374710747,0.02595205,2672.1,2671.5,2.3233]
[1723374711172,0.02595205,2672.1,2671.6,0.07671735]
[1723374711542,0.57595205,2672.3,2671.7,0.07668633]
[1723374711908,0.57595205,2672.3,2671.3,0.07485794]
[1723374711909,1.03,2672.3,2671.3,0.07485794]
[1723374712072,3.0,2672.4,2671.4,2.3233]
[1723374712274,3.0,2672.4,2671.5,0.07485114]
[1723374712594,3.0,2672.4,2671.6,0.07670264]
[1723374712801,0.02595205,2672.3,2671.6,0.07670264]
[1723374713005,3.0,2672.4,2671.6,0.32418802]
[1723374713309,0.02595205,2672.3,2671.6,0.32418802]
[1723374713759,3.0,2672.4,2671.7,0.0748521]
[1723374713961,3.0,2672.4,2671.6,0.32418802]
[1723374714184,0.02595205,2672.4,2671.7,0.07667162]
[1723374714598,0.02595205,2672.5,2671.8,0.07484349]
[1723374714899,0.02595205,2672.5,2671.9,0.07660959]
[1723374715194,2.47185205,2672.9,2672.0,2.3233]
[1723374715407,3.50185205,2672.9,2672.0,2.3233]
[1723374715699,3.0,2672.8,2672.1,0.07654757]
[1723374715863,0.02595205,2672.7,2672.1,0.07654757]
[1723374716064,0.3025952,2672.6,2671.6,2.3233]
[1723374716298,0.02595205,2672.5,2672.2,0.07651656]
[1723374716473,2.4459,2672.4,2671.6,2.3233]
[1723374716677,0.27313726,2672.3,2671.6,2.3233]
[1723374717489,0.02595205,2672.2,2671.5,7.35]
[1723374717692,0.02595205,2672.2,2671.7,0.07667162]
[1723374717898,0.02595205,2672.2,2671.6,0.07670264]
[1723374718084,0.32731373,2672.1,2671.8,0.0766406]
[1723374718257,0.02595205,2672.0,2671.7,0.07667162]
[1723374718462,0.35326578,2672.1,2671.9,0.07660959]
[1723374718693,0.32731373,2672.1,2671.8,0.0766406]
[1723374718899,0.32731373,2672.1,2671.5,7.35]
[1723374719207,0.02595205,2672.2,2671.5,7.35]
[1723374719505,0.02595205,2672.2,2671.6,0.0766769]
[1723374719676,0.57595205,2672.2,2671.6,0.0766769]
[1723374719877,0.57595205,2672.2,2671.2,2.3233]
[1723374720059,1.11231373,2672.1,2671.7,0.07669]
[1723374720261,0.02595205,2672.0,2671.2,2.3233]
[1723374720465,0.02595205,2672.1,2671.2,2.3233]
[1723374720668,0.02595205,2672.1,2671.3,0.30914777]
[1723374721192,0.02595205,2672.1,2671.3,0.07681777]
[1723374721508,2.4459,2672.0,2671.3,0.07681777]
[1723374721678,0.02595205,2671.9,2671.3,0.07681777]
[1723374721874,0.02595205,2671.9,2670.9,2.3233]
[1723374722072,0.02595205,2671.9,2671.4,0.07676469]
[1723374722273,0.27313726,2671.9,2670.9,2.3233]
[1723374722474,0.55,2671.8,2671.5,0.07673367]
[1723374722679,0.02595205,2671.7,2670.7,2.3233]
[1723374722888,0.02595205,2671.7,2670.8,0.55658771]
[1723374723206,0.02595205,2671.7,2670.8,3.63353859]
[1723374723516,0.02595205,2671.7,2670.8,0.63353859]
[1723374723801,2.4459,2671.6,2670.8,0.07695088]
[1723374724018,0.02595205,2671.5,2670.8,0.07695088]
[1723374724595,0.02595205,2671.5,2670.6,0.24257713]
[1723374724788,0.02595205,2671.5,2670.7,0.07698192]
[1723374724995,0.24718521,2671.4,2670.7,0.07698192]
[1723374725286,0.02595205,2671.3,2670.7,0.07698192]
[1723374725795,0.02595205,2671.3,2670.8,0.07695088]
[1723374725993,0.02595205,2671.3,2670.4,2.3233]
[1723374726320,0.35326578,2671.3,2670.5,0.07704401]
[1723374727299,2.4766,2671.2,2670.5,0.07704401]
[1723374727628,2.50255205,2671.2,2670.1,9.7003]
[1723374727912,0.02595205,2671.2,2670.3,2.3503]
[1723374728114,0.02595205,2671.4,2670.3,2.3503]
[1723374728315,0.02595205,2671.4,2670.4,0.15195454]
[1723374728479,0.02595205,2671.4,2670.5,0.25022545]
[1723374728914,0.02595205,2671.4,2670.6,0.07701296]
[1723374729791,5.50255205,2671.5,2670.7,2.3503]
[1723374729982,5.50255205,2671.5,2670.8,0.07718994]
[1723374730185,5.50255205,2671.5,2670.4,2.3503]
[1723374730493,5.50255205,2671.5,2670.5,0.07728306]
[1723374730699,5.4766,2671.5,2670.6,0.07487334]
[1723374730907,5.50255205,2671.5,2670.6,0.25024564]
[1723374731112,5.50255205,2671.5,2670.7,0.07722833]
[1723374732121,3.0,2671.5,2670.8,0.07486947]
[1723374732329,3.0,2671.5,2670.7,0.07722833]
[1723374732530,3.0,2671.5,2670.6,0.25024564]
[1723374732531,3.02595205,2671.5,2670.6,0.25024564]
[1723374732687,3.02595205,2671.5,2670.8,0.07737383]
[1723374732885,3.02595205,2671.5,2670.7,0.07740487]
[1723374733099,3.02595205,2671.5,2670.6,0.25024564]
[1723374733322,3.02595205,2671.5,2670.8,0.07737383]
[1723374733511,3.0,2671.5,2670.9,0.07486991]
[1723374734633,3.0,2671.5,2670.7,0.07486982]
[1723374734922,3.0,2671.5,2670.6,0.25024564]
[1723374734923,7.3,2671.6,2670.9,2.3503]
[1723374735220,2.4766,2671.8,2671.0,0.32511177]
[1723374735385,2.4766,2671.8,2671.1,0.07725865]
[1723374735586,0.02595205,2671.7,2671.1,0.07725865]
[1723374736024,0.02595205,2671.7,2670.6,2.3503]
[1723374736229,0.02595205,2671.7,2670.7,0.0773828]
[1723374736388,0.02595205,2671.7,2670.8,0.24276828]
[1723374736586,0.02595205,2671.7,2670.9,0.07728026]
[1723374739025,3.0,2672.1,2671.1,2.3503]
[1723374739026,5.4766,2672.1,2671.1,2.3503]
[1723374739225,2.4766,2672.1,2671.2,0.15204486]
[1723374739389,2.4766,2672.1,2671.3,0.07485771]
[1723374742095,2.4766,2672.7,2671.3,0.07485771]
[1723374742520,2.4766,2672.7,2671.4,0.07683088]
[1723374742715,0.29395835,2672.6,2671.6,2.3503]
[1723374742930,0.29395835,2672.6,2671.7,0.07484984]
[1723374743150,2.4766,2672.7,2671.8,0.07484981]
[1723374743436,0.36791041,2673.7,2671.8,0.07484981]
[1723374743437,2.4766,2673.5,2671.9,0.07667579]
[1723374743611,2.4766,2673.3,2672.0,0.0748388]
[1723374743799,2.4766,2673.3,2671.6,2.3503]
[1723374743800,2.4766,2673.1,2672.1,0.07661377]
[1723374744002,2.50255205,2673.0,2671.6,2.3503]
[1723374744225,2.50255205,2673.0,2671.7,0.07673782]
[1723374744600,3.55,2672.9,2671.7,0.07673782]
[1723374744936,2.4766,2672.7,2671.7,0.07673782]
[1723374745234,0.02595205,2672.6,2671.7,0.07673782]
[1723374745399,0.2502552,2672.5,2671.7,0.07673782]
[1723374745730,0.02595205,2672.4,2671.7,0.07673782]
[1723374747239,0.27620725,2672.5,2671.7,0.07673782]
[1723374748099,2.398,2673.0,2671.9,2.2835]
[1723374748333,2.398,2673.0,2672.0,0.074839]
[1723374748636,2.398,2673.0,2672.0,0.15148377]
[1723374748809,2.398,2673.0,2672.0,0.39498215]
[1723374748810,0.2398,2672.9,2672.0,0.39498215]
[1723374749006,3.2398,2672.9,2672.0,0.39498215]
[1723374752925,3.2398,2672.9,2672.0,0.07664477]
[1723374752926,2.398,2672.8,2672.0,0.07664477]
[1723374753268,2.398,2672.8,2671.6,9.6335]
[1723374753269,2.398,2672.6,2671.6,7.35]
[1723374753447,0.02595205,2672.5,2671.7,0.0759966]
[1723374753649,0.87075205,2672.5,2671.7,0.0759966]
[1723374753833,3.87075205,2672.5,2671.7,0.0759966]
[1723374754166,2.398,2672.4,2671.7,0.0759966]
[1723374754380,2.97395205,2672.3,2671.7,0.0759966]
[1723374754528,2.398,2672.1,2671.0,2.2835]
[1723374754835,0.02595205,2672.0,2671.1,0.07643269]
[1723374755728,2.398,2671.9,2671.1,0.07643269]
[1723374755949,0.26834726,2671.8,2671.1,0.07643269]
[1723374756237,0.02595205,2671.7,2671.2,0.073965]
[1723374756485,0.02595205,2671.7,2670.9,7.35]
[1723374756775,0.59258678,2671.7,2671.0,0.07415946]
[1723374757428,0.59258678,2671.7,2670.7,2.2835]
[1723374757673,0.59258678,2671.7,2670.8,0.07422153]
[1723374757965,2.398,2671.6,2670.8,0.07422153]
[1723374758273,0.02595205,2671.5,2670.8,0.07422153]
[1723374759981,3.02595205,2671.5,2670.4,2.2835]
[1723374760172,3.02595205,2671.5,2670.9,0.0742236]
[1723374760478,3.02595205,2671.5,2670.4,2.2835]
[1723374760779,3.02595205,2671.5,2670.5,0.07434776]
[1723374760987,0.60472502,2671.4,2670.5,0.07434776]
[1723374761155,0.02595205,2671.3,2670.5,0.07434776]
[1723374762944,0.57595205,2671.3,2670.5,0.07434776]
[1723374763140,0.02595205,2671.2,2670.5,0.07434776]
[1723374763481,0.57595205,2671.2,2670.5,0.07434776]
[1723374763853,0.02595205,2671.2,2670.5,0.07434776]
[1723374768295,2.4363,2671.1,2670.5,0.07434776]
[1723374768498,0.02595205,2671.0,2670.5,0.07434776]
[1723374769798,0.02595205,2671.0,2670.1,2.4289]
[1723374769971,0.02595205,2671.0,2670.6,0.07155398]
[1723374770155,0.02595205,2671.0,2670.1,2.4289]
[1723374770669,0.02595205,2671.0,2670.2,0.07167817]
[1723374770877,1.00634773,2670.9,2670.2,0.07167817]
[1723374771201,0.02595205,2670.8,2670.2,0.07167817]
[1723374790333,2.3607,2670.7,2670.2,0.07167817]
[1723374790523,0.57595205,2670.6,2670.2,0.07167817]
[1723374790718,0.57595205,2670.6,2669.8,2.4207]
[1723374790951,0.5936652,2670.5,2669.3,2.4207]
[1723374791150,0.02595205,2670.4,2669.9,0.0723307]
[1723374791346,0.02595205,2670.4,2669.3,2.4207]
[1723374791347,0.79196173,2670.3,2669.3,2.4207]
[1723374791549,0.02595205,2670.2,2669.3,2.4207]
[1723374791758,0.02595205,2670.2,2669.4,0.07249339]
[1723374793595,0.02595205,2670.3,2669.5,0.07491011]
[1723374793761,0.02595205,2670.3,2669.6,2.4207]
[1723374794093,0.02595205,2670.3,2669.6,2.49321961]
[1723374794793,2.3607,2670.2,2669.6,0.07251961]
[1723374794995,3.02595205,2670.4,2669.7,2.4207]
[1723374795162,3.02595205,2670.4,2669.7,2.67002196]
[1723374795359,3.02595205,2670.4,2669.8,0.07245012]
[1723374795571,0.02595205,2670.4,2669.8,0.07245012]
[1723374795768,3.0,2670.7,2669.8,0.07245012]
[1723374795769,9.6607,2671.1,2669.9,2.4207]
[1723374796061,0.02595205,2671.0,2670.1,2.4207]
[1723374796292,2.3607,2671.1,2670.2,0.14740828]
[1723374796593,2.3607,2671.1,2670.3,0.07488761]
[1723374796809,2.3607,2671.3,2670.3,0.07488761]
[1723374797885,5.3607,2671.3,2670.3,0.07488761]
[1723374798281,2.38665205,2671.2,2669.7,0.24932196]
[1723374798491,2.38665205,2671.2,2669.0,7.35]
[1723374798492,2.93665205,2671.2,2669.8,2.49334154]
[1723374798813,3.0,2671.1,2669.8,2.49334154]
[1723374799111,0.57595205,2671.0,2669.8,2.49334154]
[1723374799335,0.02595205,2671.0,2670.0,2.4207]
[1723374800223,0.02595205,2671.0,2670.1,0.0724011]
[1723374800380,0.02595205,2671.0,2670.0,2.4207]
[1723374800940,0.02595205,2671.0,2670.1,0.0724011]
[1723374801408,0.02595205,2671.0,2670.0,2.4207]
[1723374801624,0.26461726,2671.0,2670.1,0.26700342]
[1723374801780,0.26461726,2671.0,2670.1,0.33933459]
[1723374801981,0.26461726,2671.0,2670.1,0.26700342]
[1723374803383,2.3607,2671.2,2670.3,2.4207]
[1723374803611,0.02595205,2671.1,2670.3,2.4207]
[1723374803824,0.02595205,2671.1,2670.4,0.07224906]
[1723374804812,0.02595205,2671.1,2670.1,2.4207]
[1723374805013,0.02595205,2671.1,2670.5,0.07221801]
[1723374805235,0.23866521,2671.0,2670.1,2.4207]
[1723374805415,0.23866521,2671.0,2670.6,0.07218696]
[1723374805728,0.23866521,2671.0,2670.1,2.4207]
[1723374806142,0.23866521,2671.0,2670.2,0.07231115]
[1723374806344,3.0,2671.1,2670.4,2.4989]
[1723374806545,3.0,2671.3,2670.4,2.4989]
[1723374806737,1.03,2671.2,2670.5,0.07221801]
[1723374807244,1.03,2671.2,2670.5,0.14710326]
[1723374807878,3.0,2671.3,2670.5,0.14710326]
[1723374808241,3.0,2671.3,2670.5,0.14710529]
[1723374808441,2.37495205,2671.2,2670.5,0.07221801]
[1723374808692,2.37495205,2671.2,2670.0,2.4989]
[1723374808891,2.349,2671.0,2670.1,0.07208088]
[1723374809178,0.02595205,2670.9,2670.1,0.07208088]
[1723374810879,3.0,2671.0,2670.3,2.4989]
[1723374811091,3.0,2671.0,2670.4,0.32183356]
[1723374811243,3.02595205,2671.0,2670.3,2.4989]
[1723374811443,3.02595205,2671.0,2670.4,0.07194356]
[1723374811672,3.02595205,2671.0,2670.3,2.4989]
[1723374811977,3.02595205,2671.0,2670.4,0.07194356]
[1723374812191,4.11229678,2671.0,2670.4,0.07194356]
[1723374812478,4.11229678,2671.0,2670.3,2.4989]
[1723374812684,4.11229678,2671.0,2670.4,0.07194356]
[1723374812878,4.11229678,2671.0,2670.3,2.4989]
[1723374813081,4.11229678,2671.0,2670.4,0.07194356]
[1723374813284,4.11229678,2671.0,2670.3,2.4989]
[1723374813499,4.11229678,2671.0,2670.4,0.07194356]
[1723374813708,1.1949792,2670.9,2670.3,2.4989]
[1723374814003,0.02595205,2670.8,2670.4,0.07194356]
[1723374814368,0.02595205,2670.8,2670.3,2.4989]
[1723374814668,0.02595205,2670.8,2670.4,0.07194356]
[1723374814882,0.44804517,2670.8,2670.3,2.4989]
[1723374815066,0.02595205,2670.7,2670.4,0.07192884]
[1723374815391,0.02595205,2670.7,2669.8,2.4989]
[1723374815565,0.02595205,2670.7,2669.9,0.98489]
[1723374815766,0.02595205,2670.7,2669.9,1.0569741]
[1723374816363,3.02595205,2670.8,2670.0,2.4989]
[1723374816680,3.02595205,2671.0,2670.1,0.07201463]
[1723374816878,3.02595205,2671.0,2670.2,0.25709146]
[1723374818500,3.02595205,2671.0,2670.4,2.4989]
[1723374823017,7.3,2671.1,2670.5,0.07488562]
[1723374823705,3.0,2671.3,2670.4,2.4989]
[1723374823706,3.0,2671.3,2670.6,0.07181891]
[1723374823907,0.02595205,2671.2,2670.4,2.4989]
[1723374824213,0.02595205,2671.5,2670.6,2.4989]
[1723374824833,7.3,2671.7,2670.8,2.4989]
[1723374824998,0.02595205,2671.6,2670.8,2.4989]
[1723374825321,2.4527,2671.5,2670.5,2.61539]
[1723374825484,0.02595205,2671.4,2670.6,0.33325121]
[1723374826183,0.02595205,2671.4,2670.6,0.07171221]
[1723374828011,2.4527,2671.3,2670.6,0.07171221]
[1723374828323,2.4527,2671.1,2670.1,2.3655]
[1723374828487,0.87881726,2671.0,2670.2,0.0718364]
[1723374828691,3.87881726,2671.0,2670.1,2.3655]
[1723374828888,2.4527,2670.9,2669.4,2.3655]
[1723374829092,7.32595205,2670.8,2669.6,2.3655]
[1723374829317,0.02595205,2670.7,2669.7,0.07199169]
[1723374829626,0.02595205,2670.7,2669.8,2.3655]
[1723374829818,3.02595205,2670.7,2669.8,2.3655]
[1723374830011,3.02595205,2670.7,2669.9,0.07192956]
[1723374830221,4.60381726,2670.7,2669.9,0.07192956]
[1723374832435,3.02595205,2670.7,2669.9,0.07192956]
[1723374834241,3.02595205,2670.7,2670.0,2.3655]
[1723374834651,3.0,2670.7,2670.1,0.0721655]
[1723374834805,2.4527,2670.6,2670.1,0.0721655]
[1723374835007,1.12381726,2670.5,2670.1,0.0721655]
[1723374835318,3.57595205,2670.5,2669.3,2.3655]
[1723374835530,2.4527,2670.3,2669.4,0.07238662]
[1723374835816,0.02595205,2670.2,2669.4,0.07238662]
[1723374836141,0.57595205,2670.2,2669.4,0.07238662]
[1723374836440,2.4527,2670.1,2669.4,0.07238662]
[1723374836606,2.47865205,2670.0,2669.4,0.07238662]
[1723374836803,2.4527,2669.8,2669.4,0.07238662]
[1723374837133,2.4527,2669.6,2668.3,2.3655]
[1723374837336,0.02595205,2669.5,2668.4,0.07269745]
[1723374837538,0.32881726,2669.5,2668.5,0.24381975]
[1723374837709,0.32881726,2669.5,2668.6,2.3655]
[1723374837906,0.32881726,2669.5,2668.7,0.07260418]
[1723374837907,3.32881726,2669.5,2668.7,0.07260418]
[1723374838216,0.87815173,2669.4,2668.7,0.07260418]
[1723374838417,0.02595205,2669.3,2668.7,0.07260418]
[1723374839625,0.02595205,2669.3,2668.3,2.3655]
[1723374839822,0.02595205,2669.3,2668.8,0.07257309]
[1723374840155,0.02595205,2669.3,2668.9,0.07254201]
[1723374840448,0.44664895,2669.3,2668.9,0.07254201]
[1723374840619,0.02595205,2669.2,2668.3,2.50205]
[1723374840811,0.02595205,2669.2,2669.0,0.07251092]
[1723374841239,0.02595205,2669.2,2668.3,2.50205]
[1723374841447,0.02595205,2669.3,2669.1,0.07247985]
[1723374841631,0.02595205,2669.4,2668.4,0.07494141]
[1723374841946,0.02595205,2669.4,2668.5,0.07327035]
[1723374842154,3.0,2669.6,2668.6,0.07493245]
[1723374842648,0.02595205,2669.6,2668.7,0.14866332]
[1723374842870,0.02595205,2669.6,2668.7,0.07373848]
[1723374843079,7.3,2669.7,2668.8,2.44042486]
[1723374843249,7.3,2669.7,2668.9,0.25141633]
[1723374843544,7.3,2669.7,2669.0,0.07492479]
[1723374843750,3.0,2669.6,2669.0,0.07492479]
[1723374843912,3.02595205,2669.9,2669.1,0.07361415]
[1723374844113,3.02595205,2669.9,2668.9,0.25141633]
[1723374844326,0.02595205,2669.9,2669.0,0.33533686]
[1723374844567,7.3,2670.6,2669.1,2.44042093]
[1723374844718,0.02595205,2670.5,2669.3,7.35]
[1723374844912,0.02595205,2670.5,2669.5,2.3655]
[1723374845112,7.3,2670.6,2669.7,2.4278]
[1723374845311,14.5901,2671.2,2669.5,3.0]
[1723374845312,7.3,2671.0,2669.9,2.4278]
[1723374845513,7.3,2671.0,2670.0,0.33249358]
[1723374845859,7.3,2671.0,2670.1,0.07294252]
[1723374846337,2.4001,2671.2,2670.2,0.07489533]
[1723374846539,7.3,2671.3,2670.3,0.14761775]
[1723374846718,0.73,2671.2,2670.3,0.07488827]
[1723374847049,0.73,2671.2,2670.3,0.07488769]
[1723374847644,3.73,2671.2,2670.3,0.07488769]
[1723374847961,7.3,2671.3,2670.4,2.4278]
[1723374848247,7.3,2671.3,2670.5,0.0748824]
[1723374848653,7.3,2671.3,2670.6,0.07257377]
[1723374849021,7.3,2671.3,2670.5,0.0748824]
[1723374849259,12.19,2671.7,2670.5,0.0748824]
[1723374849260,7.3,2671.7,2670.5,0.0748824]
[1723374849465,0.73,2671.6,2670.7,2.4278]
[1723374849667,0.73,2671.6,2670.8,0.07486735]
[1723374849882,0.75595205,2671.6,2670.8,0.07235346]
[1723374850025,0.02595205,2671.8,2670.8,0.07235346]
[1723374850431,7.3,2672.1,2670.9,0.07486733]
[1723374850665,0.73,2672.0,2671.0,2.4278]
[1723374850855,0.73,2672.0,2671.1,0.07486203]
[1723374851050,0.73,2672.0,2671.1,0.14708192]
[1723374851263,0.75595205,2672.0,2671.1,0.07221989]
[1723374851430,0.803,2671.9,2671.1,0.07221989]
[1723374851933,7.3,2672.4,2671.3,2.4278]
[1723374852250,7.3,2672.7,2671.4,0.14697658]
[1723374852567,0.73,2672.6,2671.4,0.14697658]
[1723374853134,0.02595205,2672.5,2671.4,0.14697658]
[1723374853641,0.73,2672.6,2671.4,0.14697658]
[1723374854533,0.02595205,2672.5,2671.4,0.14697658]
[1723374854729,0.02595205,2672.5,2671.4,0.07212681]
[1723374855096,2.4001,2672.3,2671.4,0.07212681]
[1723374855246,0.02595205,2672.2,2671.4,0.07212681]
[1723374855577,0.02595205,2672.2,2671.2,7.35]
[1723374855781,0.02595205,2672.2,2671.5,0.07067155]
[1723374856080,0.02595205,2672.2,2671.2,7.35]
[1723374856261,0.54260521,2672.1,2671.6,0.07064053]
[1723374856435,0.02595205,2672.0,2671.2,7.35]
[1723374856632,0.57595205,2672.0,2671.7,0.07060951]
[1723374856835,0.57595205,2672.0,2670.1,2.4278]
[1723374856836,2.4001,2671.9,2670.1,2.4278]
[1723374857069,0.57595205,2671.8,2670.2,0.26853983]
[1723374857280,0.02595205,2671.7,2670.2,0.33961486]
[1723374857460,0.02595205,2671.7,2670.3,2.4278]
[1723374857683,0.02595205,2671.7,2670.3,2.49884398]
[1723374858180,2.4001,2671.6,2670.3,2.49884398]
[1723374858504,0.57595205,2671.5,2670.3,2.49884398]
[1723374859072,3.57595205,2671.5,2670.3,2.4278]
[1723374859364,0.29760521,2671.4,2670.3,2.4278]
[1723374859677,0.57595205,2671.3,2669.4,2.4278]
[1723374859861,0.02595205,2671.2,2669.4,2.4278]
[1723374860059,0.02595205,2671.2,2669.6,2.4278]
[1723374860260,0.02595205,2671.2,2669.8,2.4278]
[1723374860464,0.02595205,2671.2,2669.9,0.07489079]
[1723374860633,0.02595205,2671.2,2669.9,0.14605899]
[1723374860835,0.02595205,2671.2,2670.0,0.2573859]
[1723374861033,0.02595205,2671.2,2670.1,0.07489088]
[1723374861241,0.02595205,2671.2,2670.1,0.14599696]
[1723374861667,0.02595205,2671.2,2670.1,0.07110608]
[1723374862077,0.32976052,2671.3,2670.2,0.07488536]
[1723374862308,0.02595205,2671.2,2670.3,2.4278]
[1723374862514,0.02595205,2671.2,2670.4,0.07488325]
[1723374862807,7.3,2671.5,2670.4,0.14589618]
[1723374862972,2.42605205,2671.4,2670.4,0.07101293]
[1723374863172,2.4001,2671.2,2669.7,2.4278]
[1723374863485,0.02595205,2671.1,2669.8,0.07119926]
[1723374864075,0.57595205,2671.1,2669.8,0.07119926]
[1723374864269,0.29760521,2671.0,2669.8,0.07119926]
[1723374864494,2.4001,2670.8,2669.8,0.07119926]
[1723374864808,0.02595205,2670.7,2669.9,0.0711682]
[1723374865013,0.02595205,2670.7,2669.7,2.4278]
[1723374865366,0.02595205,2670.7,2669.8,0.07119926]
[1723374865567,2.42605205,2670.8,2669.9,0.24989993]
[1723374865761,0.02595205,2670.7,2669.9,0.24989993]
[1723374869202,0.02595205,2670.7,2670.0,0.07164844]
[1723374871477,2.3531,2671.6,2670.1,2.50789462]
[1723374871681,2.3531,2671.6,2670.2,0.25795431]
[1723374871885,2.3531,2671.6,2670.4,7.35]
[1723374872085,2.3531,2671.6,2670.5,0.07487246]
[1723374872300,2.3531,2671.6,2670.6,2.433]
[1723374872500,2.3531,2671.6,2670.7,0.07486971]
[1723374872696,7.3,2671.7,2670.7,0.14630081]
[1723374872896,2.3531,2671.9,2670.8,0.25793008]
[1723374873100,2.3531,2671.9,2670.8,0.32961333]
[1723374873101,0.02595205,2671.8,2670.8,0.32961333]
[1723374874486,0.02595205,2671.8,2670.8,0.07168325]
[1723374874915,0.57595205,2671.8,2670.6,2.433]
[1723374875089,0.57595205,2671.8,2670.9,0.07152715]
[1723374875090,2.3531,2671.7,2670.9,0.07152715]
[1723374875284,0.61885726,2671.6,2670.7,0.07158922]
[1723374875490,0.61885726,2671.6,2670.4,7.35]
[1723374875701,3.61885726,2671.6,2670.8,0.07155818]
[1723374876040,3.61885726,2671.6,2670.9,0.07152715]
[1723374876170,3.02595205,2671.6,2670.5,0.07488132]
[1723374876375,0.02595205,2671.6,2670.6,0.06940105]
[1723374876574,0.02595205,2671.6,2670.7,0.07487543]
[1723374876881,5.3531,2671.7,2670.8,0.06931976]
[1723374877081,2.88841,2671.7,2670.8,0.14419288]
[1723374877318,2.3531,2671.7,2670.8,0.14419288]
[1723374877521,0.02595205,2671.6,2670.8,0.14419288]
[1723374877992,0.02595205,2671.6,2670.2,2.433]
[1723374878193,0.02595205,2671.6,2670.3,0.06722346]
[1723374879398,2.3531,2671.5,2670.3,0.06722346]
[1723374879596,0.26385725,2671.4,2670.3,0.31724581]
[1723374879820,3.26385725,2671.4,2670.3,0.31724581]
[1723374881003,2.9031,2671.3,2670.3,0.06722346]
[1723374881313,3.02595205,2671.2,2669.9,0.24989993]
[1723374881932,0.02595205,2671.2,2670.0,0.06502851]
[1723374882249,2.3531,2671.0,2670.0,0.06502851]
[1723374882446,0.02595205,2670.9,2670.0,0.06502851]
[1723374884513,0.02595205,2670.9,2670.1,0.07488774]
[1723374884748,5.3531,2671.0,2670.0,0.06502851]
[1723374884749,0.02595205,2670.8,2670.0,0.06502851]
[1723374885055,0.02595205,2670.8,2670.1,0.06458657]
[1723374885831,0.02595205,2670.9,2670.1,0.06458657]
[1723374886530,2.37905205,2671.0,2670.1,0.13947622]
[1723374887037,2.3531,2671.0,2670.1,0.13947622]
[1723374887440,0.02595205,2670.9,2670.1,0.06458657]
[1723374887933,2.3531,2671.0,2670.2,0.07488545]
[1723374888438,2.3531,2671.0,2670.3,0.06452446]
[1723374888936,2.3531,2671.0,2670.0,1.00328999]
[1723374889135,2.3531,2671.0,2670.4,0.0623426]
[1723374889318,2.3531,2671.0,2670.1,0.07488548]
[1723374889818,2.3531,2671.0,2670.2,0.0624047]
[1723374890001,2.3531,2671.0,2670.0,1.00328999]
[1723374890202,3.0,2671.3,2670.2,2.4629]
[1723374890407,9.7243,2671.4,2670.3,0.36990723]
[1723374891208,2.4243,2671.4,2670.4,0.07487407]
[1723374891532,2.4243,2671.4,2670.5,0.6742114]
[1723374891705,2.4243,2671.4,2670.6,0.07487128]
[1723374892107,2.4243,2671.4,2670.7,0.06219797]